[Event "*** SCC Grand Prix: Titled Tuesday Blitz"]
[Site "Chess.com"]
[Date "2020.07.14"]
[Round "3"]
[White "PavelShkapenko"]
[Black "Msb2"]
[Result "0-1"]
[WhiteElo "2594"]
[BlackElo "2885"]
[TimeControl "180+1"]
[EndTime "10:28:50 PDT"]
[Termination "Msb2 won by resignation"]

1. e4 {[%clk 0:03:00.6]} 1... e6 {[%clk 0:02:59.8]} 2. d4 {[%clk 0:03:00.9]}
2... d5 {[%clk 0:03:00.3]} 3. exd5 {[%clk 0:03:01.6]} 3... exd5 {[%clk
0:03:01.2]} 4. Nf3 {[%clk 0:03:02]} 4... Nc6 {[%clk 0:03:01.8]} 5. h3 {[%clk
0:03:01.1]} 5... Bd6 {[%clk 0:02:59.1]} 6. c4 {[%clk 0:03:01]} 6... Nf6 {[%clk
0:02:58.4]} 7. Nc3 {[%clk 0:03:00.2]} 7... O-O {[%clk 0:02:58.5]} 8. cxd5 {[%clk
0:02:54]} 8... Re8+ {[%clk 0:02:58.6]} 9. Be2 {[%clk 0:02:53.7]} 9... Nb4 {[%clk
0:02:58.8]} 10. O-O {[%clk 0:02:54.1]} 10... Nbxd5 {[%clk 0:02:58.7]} 11. Bg5
{[%clk 0:02:53.7]} 11... Be7 {[%clk 0:02:47.8]} 12. Bc4 {[%clk 0:02:30.7]} 12...
Be6 {[%clk 0:02:40.4]} 13. Bb3 {[%clk 0:02:24.6]} 13... c6 {[%clk 0:02:34.8]}
14. Re1 {[%clk 0:02:24]} 14... h6 {[%clk 0:02:28.2]} 15. Bh4 {[%clk 0:02:18.2]}
15... Qa5 {[%clk 0:02:15.1]} 16. Ne5 {[%clk 0:02:04.1]} 16... Nxc3 {[%clk
0:02:04.5]} 17. bxc3 {[%clk 0:02:02.4]} 17... Qxc3 {[%clk 0:02:05.4]} 18. Bxe6
{[%clk 0:02:00.8]} 18... fxe6 {[%clk 0:02:06.1]} 19. Re3 {[%clk 0:01:54.4]}
19... Qa5 {[%clk 0:02:04.8]} 20. Rb1 {[%clk 0:01:52.7]} 20... Nd5 {[%clk
0:02:01]} 21. Re4 {[%clk 0:01:34.9]} 21... Nc3 {[%clk 0:01:44.1]} 22. Qe1 {[%clk
0:01:29.6]} 22... Bb4 {[%clk 0:01:11.6]} 23. Nc4 {[%clk 0:01:07]} 23... Qd5
{[%clk 0:00:45.9]} 24. Rxb4 {[%clk 0:00:56.7]} 24... Qxe4 {[%clk 0:00:44.2]} 25.
Qxc3 {[%clk 0:00:53.7]} 25... Qxh4 {[%clk 0:00:44.3]} 26. Rxb7 {[%clk
0:00:53.4]} 26... Rab8 {[%clk 0:00:43]} 27. Nd6 {[%clk 0:00:38.3]} 27... Rxb7
{[%clk 0:00:40.2]} 28. Nxb7 {[%clk 0:00:38.6]} 28... Rf8 {[%clk 0:00:34.7]} 29.
Qe3 {[%clk 0:00:36.9]} 29... Qf4 {[%clk 0:00:29.8]} 30. Qxe6+ {[%clk 0:00:36]}
30... Kh8 {[%clk 0:00:29.4]} 31. Qe3 {[%clk 0:00:36]} 31... Qxe3 {[%clk
0:00:28.5]} 32. fxe3 {[%clk 0:00:36.4]} 32... Rb8 {[%clk 0:00:29.3]} 33. Na5
{[%clk 0:00:36.5]} 33... Rb6 {[%clk 0:00:18.5]} 34. Nc4 {[%clk 0:00:22.8]} 34...
Ra6 {[%clk 0:00:18.9]} 35. Ne5 {[%clk 0:00:23.1]} 35... Kg8 {[%clk 0:00:15.8]}
36. a4 {[%clk 0:00:20.2]} 36... Kf8 {[%clk 0:00:14.7]} 37. a5 {[%clk 0:00:20.5]}
37... Rxa5 {[%clk 0:00:13.7]} 38. Nxc6 {[%clk 0:00:20.6]} 38... Ra1+ {[%clk
0:00:14.3]} 39. Kf2 {[%clk 0:00:20.5]} 39... a5 {[%clk 0:00:15.2]} 40. d5 {[%clk
0:00:20.4]} 40... a4 {[%clk 0:00:15.1]} 41. Ke2 {[%clk 0:00:20.3]} 41... a3
{[%clk 0:00:15.2]} 42. d6 {[%clk 0:00:20.9]} 42... Ke8 {[%clk 0:00:15.1]} 43.
Nb4 {[%clk 0:00:17.7]} 43... a2 {[%clk 0:00:14.6]} 0-1

[Event "*** SCC Grand Prix: Titled Tuesday Blitz"]
[Site "Chess.com"]
[Date "2020.07.14"]
[Round "3"]
[White "Jumbo"]
[Black "Djager97"]
[Result "1-0"]
[WhiteElo "2857"]
[BlackElo "2442"]
[TimeControl "180+1"]
[EndTime "10:28:50 PDT"]
[Termination "Jumbo won on time"]

1. d4 {[%clk 0:02:56.8]} 1... Nf6 {[%clk 0:03:00.2]} 2. Bf4 {[%clk 0:02:56]}
2... d5 {[%clk 0:02:59.7]} 3. e3 {[%clk 0:02:55.6]} 3... c5 {[%clk 0:03:00]} 4.
Nd2 {[%clk 0:02:52.9]} 4... Nc6 {[%clk 0:02:59.9]} 5. c3 {[%clk 0:02:52.7]} 5...
Bf5 {[%clk 0:02:48.9]} 6. Ngf3 {[%clk 0:02:34.8]} 6... e6 {[%clk 0:02:48.4]} 7.
Qb3 {[%clk 0:02:34.4]} 7... Qc8 {[%clk 0:02:44.2]} 8. Be2 {[%clk 0:02:26.8]}
8... Be7 {[%clk 0:02:43]} 9. Nh4 {[%clk 0:02:26.2]} 9... Bg6 {[%clk 0:02:23.2]}
10. Nxg6 {[%clk 0:02:16.5]} 10... hxg6 {[%clk 0:02:24.1]} 11. h3 {[%clk
0:02:14.7]} 11... Qd7 {[%clk 0:02:20.6]} 12. O-O {[%clk 0:02:12.2]} 12... O-O
{[%clk 0:02:20.4]} 13. Rad1 {[%clk 0:02:04]} 13... Bd6 {[%clk 0:02:14.8]} 14.
dxc5 {[%clk 0:02:00.6]} 14... Bxf4 {[%clk 0:01:54.2]} 15. exf4 {[%clk
0:02:01.5]} 15... Qc7 {[%clk 0:01:54.8]} 16. g3 {[%clk 0:01:59.2]} 16... Rac8
{[%clk 0:01:46.3]} 17. Qa3 {[%clk 0:01:56.4]} 17... Ne7 {[%clk 0:01:15.1]} 18.
b4 {[%clk 0:01:50.7]} 18... b6 {[%clk 0:01:06.5]} 19. cxb6 {[%clk 0:01:49.2]}
19... axb6 {[%clk 0:01:05.3]} 20. c4 {[%clk 0:01:49.6]} 20... Ra8 {[%clk
0:00:56.7]} 21. Qb3 {[%clk 0:01:47.5]} 21... Qa7 {[%clk 0:00:57.1]} 22. Ra1
{[%clk 0:01:42.2]} 22... Qa3 {[%clk 0:00:56.6]} 23. Rfb1 {[%clk 0:01:25.6]}
23... Ra7 {[%clk 0:00:42.7]} 24. cxd5 {[%clk 0:01:21.7]} 24... Nexd5 {[%clk
0:00:41.6]} 25. Nc4 {[%clk 0:01:21.7]} 25... Qxb3 {[%clk 0:00:31.5]} 26. Rxb3
{[%clk 0:01:22.6]} 26... Rfa8 {[%clk 0:00:29]} 27. a3 {[%clk 0:01:20.5]} 27...
Rc7 {[%clk 0:00:28.3]} 28. Ne5 {[%clk 0:01:14.2]} 28... Rac8 {[%clk 0:00:27.3]}
29. Bf3 {[%clk 0:00:59.5]} 29... Rc2 {[%clk 0:00:22.4]} 30. h4 {[%clk
0:00:47.2]} 30... Nc3 {[%clk 0:00:21.1]} 31. Re1 {[%clk 0:00:45.4]} 31... Ra2
{[%clk 0:00:15.4]} 32. Kg2 {[%clk 0:00:43.6]} 32... Nb5 {[%clk 0:00:15.2]} 33.
Ree3 {[%clk 0:00:42.9]} 33... Nd4 {[%clk 0:00:15.4]} 34. Rbd3 {[%clk 0:00:41.8]}
34... Nxf3 {[%clk 0:00:09.3]} 35. Rxf3 {[%clk 0:00:41.6]} 35... Nd5 {[%clk
0:00:09]} 36. g4 {[%clk 0:00:35.6]} 36... Rcc2 {[%clk 0:00:09.1]} 37. f5 {[%clk
0:00:34]} 37... exf5 {[%clk 0:00:07.3]} 38. gxf5 {[%clk 0:00:34.9]} 38... Nf6
{[%clk 0:00:03]} 39. Rd8+ {[%clk 0:00:31.2]} 39... Kh7 {[%clk 0:00:03.1]} 40.
Nxf7 {[%clk 0:00:31.1]} 40... gxf5 {[%clk 0:00:02.6]} 41. Rh8+ {[%clk
0:00:31.6]} 1-0

[Event "*** SCC Grand Prix: Titled Tuesday Blitz"]
[Site "Chess.com"]
[Date "2020.07.14"]
[Round "3"]
[White "Sychev_Klementy"]
[Black "if_name_main_a"]
[Result "1-0"]
[WhiteElo "2732"]
[BlackElo "2429"]
[TimeControl "180+1"]
[EndTime "10:28:50 PDT"]
[Termination "Sychev_Klementy won by checkmate"]

1. e4 {[%clk 0:03:00.9]} 1... e6 {[%clk 0:03:00.4]} 2. d4 {[%clk 0:02:57.6]}
2... d5 {[%clk 0:03:01.3]} 3. Nd2 {[%clk 0:02:56.7]} 3... c5 {[%clk 0:03:01.1]}
4. exd5 {[%clk 0:02:56.4]} 4... Qxd5 {[%clk 0:03:02]} 5. Ngf3 {[%clk 0:02:56.3]}
5... cxd4 {[%clk 0:03:02.6]} 6. Bc4 {[%clk 0:02:56.3]} 6... Qd7 {[%clk
0:03:03.4]} 7. O-O {[%clk 0:02:55.6]} 7... Nc6 {[%clk 0:03:03.8]} 8. Nb3 {[%clk
0:02:56]} 8... a6 {[%clk 0:03:04.1]} 9. Nbxd4 {[%clk 0:02:56.1]} 9... Nxd4
{[%clk 0:03:05]} 10. Nxd4 {[%clk 0:02:56.3]} 10... Bd6 {[%clk 0:03:05.3]} 11.
Qg4 {[%clk 0:02:22.3]} 11... Qc7 {[%clk 0:02:50.8]} 12. Bb3 {[%clk 0:02:09.9]}
12... Bxh2+ {[%clk 0:02:48.4]} 13. Kh1 {[%clk 0:02:07.6]} 13... Be5 {[%clk
0:02:49.1]} 14. Nf3 {[%clk 0:01:35.7]} 14... Bf6 {[%clk 0:02:44.5]} 15. Re1
{[%clk 0:01:23.8]} 15... Ne7 {[%clk 0:02:41.8]} 16. Bg5 {[%clk 0:01:08.6]} 16...
Bxb2 {[%clk 0:02:28]} 17. Rad1 {[%clk 0:01:06.8]} 17... Ng6 {[%clk 0:02:27.7]}
18. Rd8+ {[%clk 0:01:04]} 18... Qxd8 {[%clk 0:02:26.5]} 19. Bxd8 {[%clk
0:01:04.1]} 19... Kxd8 {[%clk 0:02:27.4]} 20. Ng5 {[%clk 0:01:04.3]} 20... Ke8
{[%clk 0:02:15.5]} 21. Qf3 {[%clk 0:00:51.2]} 21... Bf6 {[%clk 0:02:14.6]} 22.
Ba4+ {[%clk 0:00:46.9]} 22... Kf8 {[%clk 0:02:08.4]} 23. Ne4 {[%clk 0:00:42.7]}
23... Be7 {[%clk 0:02:08.6]} 24. Rd1 {[%clk 0:00:39.5]} 24... b5 {[%clk
0:01:57.3]} 25. Nd6 {[%clk 0:00:36.1]} 25... Bxd6 {[%clk 0:01:44.1]} 26. Qxa8
{[%clk 0:00:35.5]} 26... Ke7 {[%clk 0:01:42.4]} 27. Bb3 {[%clk 0:00:31.1]} 27...
Rd8 {[%clk 0:01:39.9]} 28. Qa7+ {[%clk 0:00:29.8]} 28... Rd7 {[%clk 0:01:37.6]}
29. Qe3 {[%clk 0:00:27.2]} 29... Bb7 {[%clk 0:01:34.7]} 30. a4 {[%clk
0:00:21.2]} 30... Nf4 {[%clk 0:01:33.1]} 31. f3 {[%clk 0:00:20.4]} 31... Ng6
{[%clk 0:01:16.8]} 32. axb5 {[%clk 0:00:18.2]} 32... axb5 {[%clk 0:01:17.7]} 33.
Qb6 {[%clk 0:00:17]} 33... Ba8 {[%clk 0:01:01.4]} 34. Rxd6 {[%clk 0:00:15.8]}
34... Rxd6 {[%clk 0:01:01]} 35. Qa7+ {[%clk 0:00:15.4]} 35... Kf6 {[%clk
0:01:00.3]} 36. Qxa8 {[%clk 0:00:15.4]} 36... Kg5 {[%clk 0:01:00.3]} 37. Qe4
{[%clk 0:00:14.4]} 37... Rd1+ {[%clk 0:00:58.1]} 38. Kh2 {[%clk 0:00:14.3]}
38... Nf4 {[%clk 0:00:57.5]} 39. Qe5+ {[%clk 0:00:12.9]} 39... f5 {[%clk
0:00:56.4]} 40. Qxg7+ {[%clk 0:00:12.9]} 40... Ng6 {[%clk 0:00:57.1]} 41. Bxe6
{[%clk 0:00:12.5]} 41... Rd6 {[%clk 0:00:48.2]} 42. Bb3 {[%clk 0:00:11.2]} 42...
Rd4 {[%clk 0:00:48.6]} 43. Kg1 {[%clk 0:00:10.2]} 43... Rd1+ {[%clk 0:00:48.5]}
44. Kf2 {[%clk 0:00:10.3]} 44... f4 {[%clk 0:00:48.7]} 45. Qxh7 {[%clk
0:00:08.1]} 45... Rd2+ {[%clk 0:00:48.7]} 46. Kf1 {[%clk 0:00:08.4]} 46... Rd1+
{[%clk 0:00:49.4]} 47. Ke2 {[%clk 0:00:08.6]} 47... Rg1 {[%clk 0:00:50.2]} 48.
Kf2 {[%clk 0:00:08.8]} 48... Rd1 {[%clk 0:00:49.9]} 49. Bf7 {[%clk 0:00:08.6]}
49... Rd2+ {[%clk 0:00:49.9]} 50. Ke1 {[%clk 0:00:08.4]} 50... Nf8 {[%clk
0:00:47.1]} 51. Qg7+ {[%clk 0:00:07.8]} 51... Kf5 {[%clk 0:00:47.4]} 52. Kxd2
{[%clk 0:00:07.8]} 52... Ne6 {[%clk 0:00:47.8]} 53. Qg6+ {[%clk 0:00:07.7]}
53... Ke5 {[%clk 0:00:47.8]} 54. Qxe6+ {[%clk 0:00:07.9]} 54... Kd4 {[%clk
0:00:48.7]} 55. Qd5# {[%clk 0:00:08.3]} 1-0

[Event "*** SCC Grand Prix: Titled Tuesday Blitz"]
[Site "Chess.com"]
[Date "2020.07.14"]
[Round "3"]
[White "mishanick"]
[Black "Ranindu2003"]
[Result "1-0"]
[WhiteElo "2850"]
[BlackElo "2607"]
[TimeControl "180+1"]
[EndTime "10:28:53 PDT"]
[Termination "mishanick won by resignation"]

1. d4 {[%clk 0:03:00.9]} 1... Nf6 {[%clk 0:02:59.7]} 2. c4 {[%clk 0:03:01.5]}
2... e6 {[%clk 0:03:00]} 3. Nf3 {[%clk 0:03:01.9]} 3... d5 {[%clk 0:03:00]} 4.
Nc3 {[%clk 0:03:02.1]} 4... a6 {[%clk 0:03:00.4]} 5. cxd5 {[%clk 0:03:01.8]}
5... exd5 {[%clk 0:03:01.3]} 6. Qb3 {[%clk 0:03:02.5]} 6... h6 {[%clk
0:02:55.6]} 7. g3 {[%clk 0:02:34.9]} 7... Be7 {[%clk 0:02:41.4]} 8. Bg2 {[%clk
0:02:35.2]} 8... O-O {[%clk 0:02:27.5]} 9. O-O {[%clk 0:02:34.7]} 9... b5 {[%clk
0:02:27.3]} 10. Ne5 {[%clk 0:02:32.5]} 10... Bb7 {[%clk 0:02:26.8]} 11. Bf4
{[%clk 0:02:27.8]} 11... b4 {[%clk 0:02:16.8]} 12. a3 {[%clk 0:02:23.1]} 12...
a5 {[%clk 0:02:05.7]} 13. axb4 {[%clk 0:01:28.1]} 13... Bxb4 {[%clk 0:02:00]}
14. Nd3 {[%clk 0:01:24.1]} 14... Na6 {[%clk 0:01:57.2]} 15. e3 {[%clk
0:01:17.6]} 15... Ne4 {[%clk 0:01:36.4]} 16. Rfc1 {[%clk 0:01:07.2]} 16... Nd2
{[%clk 0:00:59.4]} 17. Qc2 {[%clk 0:01:06.4]} 17... Nc4 {[%clk 0:00:47]} 18. b3
{[%clk 0:01:06.1]} 18... Nb6 {[%clk 0:00:45.4]} 19. h4 {[%clk 0:01:01]} 19... g5
{[%clk 0:00:33.4]} 20. hxg5 {[%clk 0:01:00.6]} 20... hxg5 {[%clk 0:00:34.3]} 21.
Be5 {[%clk 0:01:01.3]} 21... f6 {[%clk 0:00:34.7]} 22. Nxb4 {[%clk 0:01:00.7]}
22... Nxb4 {[%clk 0:00:28.9]} 23. Qg6+ {[%clk 0:01:00.4]} 23... Kh8 {[%clk
0:00:29.4]} 24. Bf3 {[%clk 0:00:48.4]} 24... Qe7 {[%clk 0:00:23]} 25. Kg2 {[%clk
0:00:21.2]} 25... Qg7 {[%clk 0:00:22.4]} 26. Qxg7+ {[%clk 0:00:20.8]} 26... Kxg7
{[%clk 0:00:23.3]} 27. Bxc7 {[%clk 0:00:21.4]} 27... Nd7 {[%clk 0:00:17.2]} 28.
Bxa5 {[%clk 0:00:20.4]} 28... Nc6 {[%clk 0:00:17.4]} 29. b4 {[%clk 0:00:18.7]}
29... Rfc8 {[%clk 0:00:17.7]} 30. Nxd5 {[%clk 0:00:18.3]} 30... Nxa5 {[%clk
0:00:17.5]} 31. bxa5 {[%clk 0:00:18]} 31... Rxc1 {[%clk 0:00:17.5]} 32. Rxc1
{[%clk 0:00:17.5]} 32... Bxd5 {[%clk 0:00:17.6]} 33. Bxd5 {[%clk 0:00:17.1]}
33... Rxa5 {[%clk 0:00:18.5]} 34. Bf3 {[%clk 0:00:17.6]} 34... Nb6 {[%clk
0:00:18.6]} 35. Rc7+ {[%clk 0:00:17.7]} 35... Kg6 {[%clk 0:00:18.5]} 36. Be4+
{[%clk 0:00:17.6]} 36... f5 {[%clk 0:00:13.9]} 37. Rc6+ {[%clk 0:00:17.9]} 37...
Kf7 {[%clk 0:00:14.3]} 38. Bxf5 {[%clk 0:00:17.1]} 38... Rxf5 {[%clk 0:00:13.7]}
39. Rxb6 {[%clk 0:00:16.9]} 1-0

[Event "*** SCC Grand Prix: Titled Tuesday Blitz"]
[Site "Chess.com"]
[Date "2020.07.14"]
[Round "3"]
[White "reniite"]
[Black "freshfoodcompany"]
[Result "0-1"]
[WhiteElo "1907"]
[BlackElo "2250"]
[TimeControl "180+1"]
[EndTime "10:28:53 PDT"]
[Termination "freshfoodcompany won by resignation"]

1. e4 {[%clk 0:02:59.7]} 1... c5 {[%clk 0:02:59.4]} 2. Nf3 {[%clk 0:02:55]} 2...
Nc6 {[%clk 0:02:58.9]} 3. d4 {[%clk 0:02:55.3]} 3... cxd4 {[%clk 0:02:58.8]} 4.
Nxd4 {[%clk 0:02:55.1]} 4... Nf6 {[%clk 0:02:58.5]} 5. Nc3 {[%clk 0:02:54.2]}
5... e5 {[%clk 0:02:57.7]} 6. Ndb5 {[%clk 0:02:54.8]} 6... d6 {[%clk 0:02:57.9]}
7. Nd5 {[%clk 0:02:54.1]} 7... Nxd5 {[%clk 0:02:56.7]} 8. exd5 {[%clk 0:02:55]}
8... Nb8 {[%clk 0:02:56.5]} 9. a4 {[%clk 0:02:53.7]} 9... Be7 {[%clk 0:02:54.4]}
10. Be2 {[%clk 0:02:45.2]} 10... O-O {[%clk 0:02:52.4]} 11. O-O {[%clk
0:02:45.1]} 11... a6 {[%clk 0:02:51.1]} 12. Na3 {[%clk 0:02:43]} 12... Nd7
{[%clk 0:02:45.4]} 13. Nc4 {[%clk 0:02:42.4]} 13... f5 {[%clk 0:02:36.5]} 14. f4
{[%clk 0:02:35.2]} 14... Bf6 {[%clk 0:02:32.5]} 15. c3 {[%clk 0:02:31.4]} 15...
exf4 {[%clk 0:02:27.7]} 16. Bxf4 {[%clk 0:02:13.5]} 16... Ne5 {[%clk 0:02:17.8]}
17. Qb3 {[%clk 0:01:18]} 17... Nxc4 {[%clk 0:02:09.5]} 18. Bxc4 {[%clk
0:01:18.9]} 18... Qc7 {[%clk 0:02:04.3]} 19. Rfe1 {[%clk 0:01:09.3]} 19... Rb8
{[%clk 0:01:47]} 20. Qb4 {[%clk 0:00:52.5]} 20... Rd8 {[%clk 0:01:34.5]} 21. a5
{[%clk 0:00:50.7]} 21... b5 {[%clk 0:01:22.2]} 22. axb6 {[%clk 0:00:41.2]} 22...
Rxb6 {[%clk 0:01:17.8]} 23. Qa5 {[%clk 0:00:38.7]} 23... Qxc4 {[%clk 0:01:10.6]}
24. Qxb6 {[%clk 0:00:37.5]} 24... Qxf4 {[%clk 0:01:06.4]} 25. Rf1 {[%clk
0:00:37]} 25... Qc4 {[%clk 0:00:58.3]} 26. Rae1 {[%clk 0:00:30.9]} 26... Qxd5
{[%clk 0:00:46.7]} 27. Rd1 {[%clk 0:00:31.3]} 27... Qc5+ {[%clk 0:00:45.1]} 28.
Qxc5 {[%clk 0:00:30.1]} 28... dxc5 {[%clk 0:00:45.2]} 29. Rxd8+ {[%clk
0:00:30.2]} 29... Bxd8 {[%clk 0:00:45.2]} 30. Rd1 {[%clk 0:00:31.1]} 30... Be7
{[%clk 0:00:41.9]} 31. Re1 {[%clk 0:00:31.2]} 31... Kf7 {[%clk 0:00:41.7]} 32.
Kf2 {[%clk 0:00:31.1]} 32... Be6 {[%clk 0:00:39]} 33. Rd1 {[%clk 0:00:30.2]}
33... Bc4 {[%clk 0:00:34.4]} 34. Ra1 {[%clk 0:00:28.2]} 34... Bd6 {[%clk
0:00:28.4]} 35. b3 {[%clk 0:00:25.6]} 35... Bxb3 {[%clk 0:00:24.9]} 36. Rxa6
{[%clk 0:00:25.4]} 36... Be7 {[%clk 0:00:23.2]} 37. Ra7 {[%clk 0:00:23.4]} 37...
Kf6 {[%clk 0:00:19]} 38. Ke3 {[%clk 0:00:22.6]} 38... c4 {[%clk 0:00:18.8]} 39.
Ra6+ {[%clk 0:00:20.4]} 39... Kg5 {[%clk 0:00:17.9]} 40. Ra7 {[%clk 0:00:19.8]}
40... Bc5+ {[%clk 0:00:17.8]} 41. Kf3 {[%clk 0:00:20.3]} 41... Bxa7 {[%clk
0:00:18.1]} 42. g3 {[%clk 0:00:21.2]} 42... Bd1+ {[%clk 0:00:18.2]} 0-1

[Event "*** SCC Grand Prix: Titled Tuesday Blitz"]
[Site "Chess.com"]
[Date "2020.07.14"]
[Round "3"]
[White "Baronessa08"]
[Black "CrushingKings"]
[Result "0-1"]
[WhiteElo "2359"]
[BlackElo "2557"]
[TimeControl "180+1"]
[EndTime "10:28:55 PDT"]
[Termination "CrushingKings won on time"]

1. d4 {[%clk 0:03:00.9]} 1... Nf6 {[%clk 0:02:57.4]} 2. c4 {[%clk 0:02:59.2]}
2... e6 {[%clk 0:02:56]} 3. Nc3 {[%clk 0:02:58]} 3... Bb4 {[%clk 0:02:56.4]} 4.
Qc2 {[%clk 0:02:56.9]} 4... O-O {[%clk 0:02:55]} 5. a3 {[%clk 0:02:54]} 5...
Bxc3+ {[%clk 0:02:54.4]} 6. Qxc3 {[%clk 0:02:54.4]} 6... b6 {[%clk 0:02:54.4]}
7. Bg5 {[%clk 0:02:53.3]} 7... Bb7 {[%clk 0:02:52.1]} 8. e3 {[%clk 0:02:53.3]}
8... d6 {[%clk 0:02:50.5]} 9. Ne2 {[%clk 0:02:46.4]} 9... Nbd7 {[%clk
0:02:50.2]} 10. Qc2 {[%clk 0:02:45]} 10... h6 {[%clk 0:02:49.3]} 11. Bh4 {[%clk
0:02:41.4]} 11... Qe8 {[%clk 0:02:44.8]} 12. Nc3 {[%clk 0:02:40.7]} 12... e5
{[%clk 0:02:39.9]} 13. d5 {[%clk 0:02:36.9]} 13... a5 {[%clk 0:02:35.4]} 14. Be2
{[%clk 0:02:31.9]} 14... Nc5 {[%clk 0:02:30.8]} 15. Bxf6 {[%clk 0:02:28.1]}
15... gxf6 {[%clk 0:02:31.7]} 16. O-O {[%clk 0:02:27.1]} 16... a4 {[%clk
0:02:28.5]} 17. Bg4 {[%clk 0:02:24.2]} 17... Bc8 {[%clk 0:02:15.5]} 18. Bf5
{[%clk 0:02:20.6]} 18... Kh8 {[%clk 0:02:12.9]} 19. Ne2 {[%clk 0:02:09.8]} 19...
Rg8 {[%clk 0:01:26]} 20. Ng3 {[%clk 0:02:00.8]} 20... b5 {[%clk 0:01:24.2]} 21.
e4 {[%clk 0:01:46.8]} 21... bxc4 {[%clk 0:01:13.5]} 22. Qxc4 {[%clk 0:01:43.1]}
22... Ba6 {[%clk 0:01:11.8]} 23. Qc1 {[%clk 0:01:40.1]} 23... Qf8 {[%clk
0:01:09.5]} 24. Rd1 {[%clk 0:01:37.3]} 24... Nb3 {[%clk 0:01:00.1]} 25. Qxc7
{[%clk 0:01:36.1]} 25... Nxa1 {[%clk 0:01:00.5]} 26. Rxa1 {[%clk 0:01:36.3]}
26... Bc8 {[%clk 0:01:01.1]} 27. Qb6 {[%clk 0:01:17.1]} 27... h5 {[%clk
0:00:30.7]} 28. Bxc8 {[%clk 0:01:03.4]} 28... Rxc8 {[%clk 0:00:27]} 29. Nf5
{[%clk 0:01:03.7]} 29... Qd8 {[%clk 0:00:15.9]} 30. Qe3 {[%clk 0:01:01]} 30...
Rg6 {[%clk 0:00:15.8]} 31. h4 {[%clk 0:00:37.8]} 31... Rc2 {[%clk 0:00:11.4]}
32. Qf3 {[%clk 0:00:34.2]} 32... Rg4 {[%clk 0:00:09.7]} 33. Ng3 {[%clk
0:00:29.3]} 33... Rxh4 {[%clk 0:00:05.7]} 0-1

[Event "*** SCC Grand Prix: Titled Tuesday Blitz"]
[Site "Chess.com"]
[Date "2020.07.14"]
[Round "3"]
[White "ikhasu"]
[Black "Gusarov91"]
[Result "1-0"]
[WhiteElo "2427"]
[BlackElo "2627"]
[TimeControl "180+1"]
[EndTime "10:28:56 PDT"]
[Termination "ikhasu won by resignation"]

1. d4 {[%clk 0:03:00.9]} 1... Nf6 {[%clk 0:02:59.6]} 2. Nf3 {[%clk 0:03:00.5]}
2... g6 {[%clk 0:02:59.3]} 3. Nc3 {[%clk 0:02:57.1]} 3... d5 {[%clk 0:02:58]} 4.
Bf4 {[%clk 0:02:49.4]} 4... Bg7 {[%clk 0:02:57.2]} 5. e3 {[%clk 0:02:49.2]} 5...
Bg4 {[%clk 0:02:50.2]} 6. Be2 {[%clk 0:02:48.7]} 6... O-O {[%clk 0:02:49.8]} 7.
Ne5 {[%clk 0:02:48.6]} 7... Bxe2 {[%clk 0:02:49.4]} 8. Qxe2 {[%clk 0:02:48]}
8... c6 {[%clk 0:02:50.1]} 9. h4 {[%clk 0:02:43.3]} 9... Nbd7 {[%clk 0:02:49.9]}
10. O-O-O {[%clk 0:02:42.6]} 10... Qa5 {[%clk 0:02:44.4]} 11. f3 {[%clk
0:02:41.7]} 11... Nxe5 {[%clk 0:02:42.8]} 12. Bxe5 {[%clk 0:02:40]} 12... b5
{[%clk 0:02:40.8]} 13. a3 {[%clk 0:02:29.4]} 13... b4 {[%clk 0:02:40.6]} 14.
axb4 {[%clk 0:02:22.2]} 14... Qxb4 {[%clk 0:02:40.7]} 15. Qd3 {[%clk 0:02:18.4]}
15... a5 {[%clk 0:02:32.1]} 16. Na2 {[%clk 0:02:12.1]} 16... Qb6 {[%clk
0:02:26.4]} 17. Qa3 {[%clk 0:02:11.2]} 17... Ra7 {[%clk 0:02:17.3]} 18. Nc3
{[%clk 0:02:08.9]} 18... Qb4 {[%clk 0:02:13.5]} 19. Na4 {[%clk 0:02:05.7]} 19...
Nd7 {[%clk 0:02:10.9]} 20. Bxg7 {[%clk 0:02:03.4]} 20... Kxg7 {[%clk 0:02:10.4]}
21. Rd3 {[%clk 0:02:02.4]} 21... Rb8 {[%clk 0:02:05.3]} 22. Rb3 {[%clk
0:01:58.4]} 22... Qxa3 {[%clk 0:02:03.9]} 23. Rxa3 {[%clk 0:01:56.7]} 23... Rb4
{[%clk 0:02:00.8]} 24. c3 {[%clk 0:01:53.1]} 24... Rb8 {[%clk 0:01:57.5]} 25.
Kc2 {[%clk 0:01:53.2]} 25... e5 {[%clk 0:01:57]} 26. Rha1 {[%clk 0:01:50.5]}
26... exd4 {[%clk 0:01:56.6]} 27. cxd4 {[%clk 0:01:45.7]} 27... Kh6 {[%clk
0:01:44.4]} 28. Rc3 {[%clk 0:01:45.2]} 28... Ra6 {[%clk 0:01:41.6]} 29. Nc5
{[%clk 0:01:43.5]} 29... Nxc5 {[%clk 0:01:41.9]} 30. Rxc5 {[%clk 0:01:43.5]}
30... Rb5 {[%clk 0:01:42.5]} 31. Ra3 {[%clk 0:01:34.6]} 31... Rxc5+ {[%clk
0:01:38.2]} 32. dxc5 {[%clk 0:01:33.7]} 32... a4 {[%clk 0:01:38.7]} 33. Kc3
{[%clk 0:01:27.3]} 33... Ra5 {[%clk 0:01:37]} 34. b4 {[%clk 0:01:21.2]} 34...
Ra8 {[%clk 0:01:36.9]} 35. g3 {[%clk 0:01:17.1]} 35... Kg7 {[%clk 0:01:31.8]}
36. Ra1 {[%clk 0:01:15.2]} 36... Kf6 {[%clk 0:01:31.7]} 37. Kb2 {[%clk
0:01:14.9]} 37... Ke5 {[%clk 0:01:30.6]} 38. Rd1 {[%clk 0:01:12]} 38... a3+
{[%clk 0:01:22.9]} 39. Ka2 {[%clk 0:01:12]} 39... f5 {[%clk 0:01:20.4]} 40. Rd3
{[%clk 0:01:10.6]} 40... Ra4 {[%clk 0:01:20.5]} 41. Rd4 {[%clk 0:01:04.6]} 41...
h6 {[%clk 0:01:19.4]} 42. f4+ {[%clk 0:01:04.4]} 42... Kf6 {[%clk 0:01:19]} 43.
b5 {[%clk 0:00:57.5]} 43... Ra8 {[%clk 0:00:31.9]} 44. bxc6 {[%clk 0:00:56.6]}
44... Rc8 {[%clk 0:00:30.7]} 45. Rxd5 {[%clk 0:00:56.1]} 45... Rxc6 {[%clk
0:00:30.7]} 46. Kxa3 {[%clk 0:00:55.7]} 46... Ke6 {[%clk 0:00:27.4]} 47. Re5+
{[%clk 0:00:55.8]} 47... Kf6 {[%clk 0:00:27.3]} 48. Kb4 {[%clk 0:00:56]} 48...
Ra6 {[%clk 0:00:27.8]} 49. Kb5 {[%clk 0:00:47]} 49... Ra1 {[%clk 0:00:27.7]} 50.
c6 {[%clk 0:00:47.1]} 50... Rb1+ {[%clk 0:00:27.8]} 51. Ka6 {[%clk 0:00:46.8]}
51... Rc1 {[%clk 0:00:27]} 52. Kb6 {[%clk 0:00:45.6]} 52... g5 {[%clk
0:00:22.1]} 53. hxg5+ {[%clk 0:00:44.3]} 53... hxg5 {[%clk 0:00:21.9]} 54. c7
{[%clk 0:00:44.4]} 54... gxf4 {[%clk 0:00:21]} 55. gxf4 {[%clk 0:00:43.9]} 55...
Rb1+ {[%clk 0:00:20.3]} 56. Rb5 {[%clk 0:00:43.4]} 56... Rc1 {[%clk 0:00:20.4]}
57. Rc5 {[%clk 0:00:43.3]} 57... Rb1+ {[%clk 0:00:21]} 58. Kc6 {[%clk
0:00:42.5]} 1-0